fUST/lending_fUST_20241012
["ID","MTS","AMOUNT","RATE_DAILY","PERIOD"]
[340164698,1728730244005,-1064.14,0.00057534,120]
[340164699,1728730244015,-161.174476,0.00057549,120]
[340164700,1728730244025,-156.18,0.000577,57]
[340164701,1728730244035,-156.18,0.000577,57]
[340164702,1728730244046,-968.46,0.00057808,120]
[340164703,1728730244056,-1064.14,0.00057808,120]
[340164704,1728730244066,-525.48016552,0.00057854,15]
[340164705,1728730244077,-500.0,0.0005787,28]
[340164706,1728730244088,-150.112233,0.00058,15]
[340164707,1728730244098,-968.46,0.00058082,120]
[340164708,1728730244109,-1064.14,0.00058082,120]
[340164709,1728730244119,-1000.0,0.00058289,15]
[340164710,1728730244129,-968.46,0.00058356,120]
[340164711,1728730244140,-1064.14,0.00058356,120]
[340164712,1728730244153,-1521.93944335,0.00058491,120]
[340164713,1728730244165,-322.0,0.000585,30]
[340164714,1728730244174,-968.46,0.0005863,120]
[340164715,1728730244185,-1064.14,0.0005863,120]
[340164716,1728730244197,-500.0,0.0005887,29]
[340164717,1728730244208,-968.46,0.00058904,120]
[340164718,1728730244220,-1064.14,0.00058904,120]
[340164719,1728730244230,-1000.0,0.00059,120]
[340164720,1728730244240,-150.112233,0.00059,15]
[340164721,1728730244251,-300.5,0.00059154,15]
[340164722,1728730244261,-968.46,0.00059178,120]
[340164723,1728730244271,-1064.14,0.00059178,120]
[340164724,1728730244281,-968.46,0.00059452,120]
[340164725,1728730244291,-1064.14,0.00059452,120]
[340164726,1728730244301,-400.0,0.0005964,2]
[340164727,1728730244311,-968.46,0.00059726,120]
[340164728,1728730244321,-1064.14,0.00059726,120]
[340164729,1728730244331,-163.569705,0.00059878,2]
[340164730,1728730244342,-1000.0,0.000599,2]
[340164731,1728730244352,-390.64,0.000599,2]
[340164732,1728730244361,-667.75,0.000599,30]
[340164733,1728730244371,-155.9,0.00059922,90]
[340164734,1728730244380,-843.62,0.0005999,10]
[340164735,1728730244390,-968.46,0.00059999,120]
[340164736,1728730244400,-1064.14,0.00059999,120]
[340164737,1728730244411,-10000.0,0.0006,120]
[340164738,1728730244421,-10000.0,0.0006,120]
[340164739,1728730244432,-10000.0,0.0006,120]
[340164740,1728730244443,-10000.0,0.0006,120]
[340164741,1728730244453,-10000.0,0.0006,120]
[340164742,1728730244464,-10000.0,0.0006,120]
[340164743,1728730244474,-10000.0,0.0006,120]
[340164744,1728730244484,-10000.0,0.0006,120]
[340164745,1728730244494,-10000.0,0.0006,120]
[340164746,1728730244505,-10000.0,0.0006,120]
[340164747,1728730244515,-3647.67075204,0.0006,120]
[340164748,1728730244525,-503.81345498,0.0006,120]
[340164749,1728730244536,-151.0,0.0006,120]
[340164750,1728730244545,-151.0,0.0006,120]
[340164751,1728730244556,-151.0,0.0006,120]
[340164752,1728730244566,-283.298194,0.0006,120]
[340164753,1728730244661,-2589.95,0.0006,30]
[340164754,1728730244671,-2000.0,0.0006,120]
[340164755,1728730244681,-155.9,0.00060189,90]
[340164756,1728730244693,-1179.127,0.00060206,120]
[340164757,1728730244706,-968.46,0.00060273,120]
[340164758,1728730244718,-1064.14,0.00060273,120]
[340164759,1728730244727,-1500.0,0.00060292,15]
[340164760,1728730244738,-155.9,0.00060455,120]
[340164761,1728730244752,-968.46,0.00060547,120]
[340164762,1728730244763,-1064.14,0.00060547,120]
[340164763,1728730244773,-163.021502,0.000607,2]
[340164764,1728730244783,-155.9,0.00060722,120]
[340164765,1728730244793,-968.46,0.00060821,120]
[340164766,1728730244802,-1064.14,0.00060821,120]
[340164767,1728730244812,-155.9,0.00060988,120]
[340164768,1728730244822,-1000.0,0.00061,3]
[340164769,1728730244832,-968.47518269,0.00061095,120]
[340164770,1728730244842,-1064.34151713,0.00061095,120]
[340164771,1728730244853,-156.18,0.000612,63]
[340164772,1728730244863,-156.18,0.000612,63]
[340164773,1728730244874,-155.9,0.00061255,120]
[340164774,1728730244885,-2851.78624858,0.00061266,28]
[340164775,1728730244896,-155.9,0.00061521,120]
[340164776,1728730244906,-154.38448363,0.00061577,120]
[340164777,1728730244917,-171.0,0.00061619,120]
[340164778,1728730244928,-150.0,0.00061765,120]
[340164779,1728730244939,-155.9,0.00061788,120]
[340164780,1728730244949,-1000.0,0.00062,4]
[340164781,1728730244959,-757.25,0.00062,120]
[340164782,1728730244969,-155.9,0.00062054,120]
[340164783,1728730244979,-161.174476,0.00062222,120]
[340164784,1728730244988,-155.9,0.00062321,120]
[340164785,1728730244998,-155.9,0.00062587,120]
[340164786,1728730245007,-345.23832114,0.00062633,15]
[340164787,1728730245017,-1000.0,0.00063,5]
[340164788,1728730245027,-150.0,0.00063,120]
[340164789,1728730245036,-151.0,0.00063,120]
[340164790,1728730245046,-667.75,0.00063,30]
[340164791,1728730245055,-500.0,0.00063013,120]
[340164792,1728730245065,-2589.95,0.000631,30]
[340164793,1728730245075,-160.49217476,0.00063636,120]
[340164794,1728730245086,-163667.10104167,0.00063933,120]
[340164795,1728730245097,-151.0,0.00063933,120]
[340164796,1728730245108,-400.0,0.00063937,2]
[340164797,1728730245117,-61137.05355447,0.00064,120]
[340164798,1728730245127,-150.0,0.00064,120]
[340164799,1728730245136,-160.0,0.00064275,5]
[340164800,1728730245146,-150.0,0.000643,120]
[340164801,1728730245155,-12170.24765719,0.0006435,120]
[340164802,1728730245166,-163.569705,0.00064414,2]
[340164803,1728730245175,-156.18,0.000647,66]
[340164804,1728730245186,-156.18,0.000647,66]
[340164805,1728730245196,-156.18,0.000647,66]
[340164806,1728730245206,-156.18,0.000647,66]
[340164807,1728730245216,-156.18,0.000647,66]
[340164808,1728730245226,-156.18,0.000647,66]
[340164809,1728730245235,-156.18,0.000647,66]
[340164810,1728730245245,-150.0,0.00064973,7]
[340164811,1728730245255,-150.61275308,0.00064973,15]
[340164812,1728730245265,-107488.82169438,0.00065,120]
[340164818,1728730246627,-1069.34361862,0.00065,120]
[340164820,1728730343681,502.27822382,0.000376,5]
[340164823,1728730647504,349.5,0.00032001,2]
[340164831,1728731149780,10000.0,0.00025,2]
[340164832,1728731151158,-309.57723846,0.00036059,2]
[340164833,1728731151179,-158.0,0.00037,2]
[340164834,1728731151200,-10.91089781,0.00037717,2]
[340164837,1728731216096,-155.75576819,0.00037717,2]
[340164838,1728731216117,-473.359266,0.00041757,2]
[340164839,1728731216138,-231.295097,0.00041842,2]
[340164840,1728731216161,-231.295097,0.00042052,2]
[340164841,1728731216183,-473.359266,0.00042442,2]
[340164842,1728731216206,-560.10634574,0.00043026,2]
[340164843,1728731216231,-550.0,0.00043026,30]
[340164844,1728731216254,-550.0,0.00043026,5]
[340164845,1728731216279,-192.0,0.00043027,2]
[340164846,1728731216301,-4574.43831122,0.00043027,120]
[340164847,1728731231160,-324.36159856,0.00043026,30]
[340164848,1728731235128,-225.63840144,0.00043026,30]
[340164849,1728731235151,-270.30333847,0.00043026,5]
[340164850,1728731251285,-279.69666153,0.00043026,5]
[340164851,1728731251309,-16066.71568297,0.00043027,120]
[340164852,1728731251333,-473.359266,0.00043127,2]
[340164853,1728731251358,-178.136546,0.00043211,2]
[340164854,1728731251383,-178.136546,0.00043662,2]
[340164855,1728731251410,-178.136546,0.00044112,2]
[340164856,1728731251433,-354.59033367,0.00044411,30]
[340164857,1728731251457,-6842.0915924,0.00044411,2]
[340164858,1728731251486,-178.136546,0.00044563,2]
[340164859,1728731251510,-168.126,0.00044656,71]
[340164860,1728731251535,-178.136546,0.00045013,2]
[340164861,1728731251559,-178.136546,0.00045463,2]
[340164862,1728731251584,-770.0,0.0004575,5]
[340164863,1728731251607,-150.0,0.00046849,90]
[340164864,1728731251631,-150.0,0.00047,90]
[340164865,1728731251653,-770.0,0.00047329,30]
[340164866,1728731251675,-840.0,0.00048646,5]
[340164867,1728731251697,-150.0,0.00048904,90]
[340164868,1728731251718,-500.0,0.00049657,31]
[340164869,1728731251741,-500.0,0.00049657,120]
[340164870,1728731251763,-500.0,0.00049657,120]
[340164871,1728731251786,-500.0,0.00049657,120]
[340164872,1728731251807,-289.15597042,0.00049657,120]
[340164873,1728731251829,-510.76995552,0.00049657,120]
[340164874,1728731251852,-500.0,0.00049657,120]
[340164875,1728731251878,-250.0,0.00049657,120]
[340164876,1728731251903,-500.0,0.00049657,120]
[340164877,1728731251926,-500.0,0.00049657,120]
[340164878,1728731251949,-500.0,0.00049657,120]
[340164879,1728731251972,-500.0,0.00049657,120]
[340164880,1728731251994,-500.0,0.00049657,120]
[340164881,1728731252021,-500.0,0.00049657,120]
[340164882,1728731252047,-500.0,0.00049657,120]
[340164883,1728731252069,-500.0,0.00049657,120]
[340164884,1728731252094,-500.0,0.00049657,120]
[340164885,1728731252121,-500.0,0.00049657,120]
[340164886,1728731252144,-405.89921304,0.00049657,120]
[340164887,1728731252169,-380.12777594,0.00049657,120]
[340164888,1728731252193,-9294.63153718,0.00049658,120]
[340164895,1728731345107,-286.7972292,0.00046866,2]
[340164896,1728731348173,-180.0,0.00049657,30]
[340164897,1728731348195,-11346.52245697,0.00049658,120]
[340164994,1728731439684,-2009.969999,0.00041608,7]
[340164995,1728731439696,-155.51,0.000507,48]
[340164996,1728731439707,-153.0,0.00051349,120]
[340164997,1728731439716,-161.813806,0.00052877,120]
[340164998,1728731439725,-306.0,0.00053836,30]
[340164999,1728731439737,-502.54167999,0.0005389,10]
[340165000,1728731439746,-346.304532,0.00053973,30]
[340165001,1728731439756,-301.5202838,0.00053973,30]
[340165002,1728731439765,-298.7695201,0.00053973,30]
[340165003,1728731439779,-502.52874428,0.00054197,10]
[340165004,1728731439792,-155.51,0.000542,54]
[340165005,1728731439804,-10.17679059,0.000542,54]
[340165006,1728731439819,-145.33320941,0.000542,54]
[340165007,1728731439829,-250.960348,0.00054247,30]
[340165008,1728731439839,-500.0,0.00054794,120]
[340165009,1728731439850,-500.0,0.00054794,120]
[340165010,1728731439861,-500.0,0.00054794,120]
[340165011,1728731439872,-309.53549563,0.00054794,120]
[340165012,1728731439883,-500.0,0.00054794,120]
[340165013,1728731439893,-175.41319623,0.00054794,120]
[340165014,1728731439904,-500.0,0.00054794,120]
[340165015,1728731439915,-564.43,0.00054794,120]
[340165016,1728731439927,-500.0,0.00054794,120]
[340165017,1728731439938,-500.0,0.00054794,120]
[340165018,1728731439949,-500.0,0.00054794,60]
[340165019,1728731439960,-500.0,0.00054794,120]
[340165020,1728731439970,-500.0,0.00054794,120]
[340165021,1728731439980,-500.0,0.00054794,120]
[340165022,1728731439989,-1000.0,0.00054794,120]
[340165023,1728731440000,-536.35505415,0.00054794,120]
[340165024,1728731440013,-500.0,0.00054794,120]
[340165025,1728731440023,-500.0,0.00054794,120]
[340165026,1728731440034,-500.0,0.00054794,120]
[340165027,1728731440044,-597.09228828,0.00054794,120]
[340165028,1728731440054,-211.48509545,0.00054794,120]
[340165029,1728731440065,-500.0,0.00054794,120]
[340165030,1728731440078,-616.26,0.00054794,120]
[340165031,1728731440087,-500.0,0.00054794,120]
[340165032,1728731440097,-500.0,0.00054794,18]
[340165033,1728731440108,-500.0,0.00054794,120]
[340165034,1728731440119,-500.0,0.00054794,2]
[340165035,1728731440129,-166.12017637,0.00054899,2]
[340165036,1728731440138,-5040.8,0.00055,120]
[340165037,1728731440149,-236.39355578,0.00055068,120]
[340165038,1728731440158,-500.0,0.00055068,120]
[340165039,1728731440170,-500.0,0.00055068,120]
[340165040,1728731440182,-500.0,0.00055068,120]
[340165041,1728731440193,-564.43,0.00055068,120]
[340165042,1728731440205,-500.0,0.00055068,120]
[340165043,1728731440215,-500.00518196,0.00055068,120]
[340165044,1728731440225,-500.0,0.00055068,120]
[340165045,1728731440236,-173.51678003,0.00055068,120]
[340165046,1728731440247,-1000.0,0.00055068,120]
[340165047,1728731440259,-500.0,0.00055068,120]
[340165048,1728731440271,-500.0,0.00055068,120]
[340165049,1728731440282,-500.0,0.00055068,120]
[340165052,1728731440388,-500.0,0.00055068,120]
[340165053,1728731440401,-500.0,0.00055068,18]
[340165054,1728731440411,-452.47435805,0.00055342,120]
[340165055,1728731440422,-500.0,0.00055342,120]
[340165056,1728731440431,-564.43,0.00055342,120]
[340165058,1728731440441,-500.0,0.00055342,60]
[340165059,1728731440450,-1000.0,0.00055342,120]
[340165060,1728731440460,-500.0,0.00055342,120]
[340165061,1728731440469,-500.0,0.00055342,120]
[340165062,1728731440480,-170.4625,0.00055342,120]
[340165063,1728731440490,-199.18,0.00055342,18]
[340165064,1728731440500,-400.0,0.00055342,2]
[340165065,1728731440509,-158.925474,0.00055342,2]
[340165066,1728731440519,-500.0,0.0005555,5]
[340165067,1728731440528,-500.0,0.00055616,120]
[340165068,1728731440537,-564.43,0.00055616,120]
[340165069,1728731440547,-500.0,0.00055616,120]
[340165070,1728731440556,-500.0,0.00055616,120]
[340165071,1728731440566,-500.0,0.0005589,120]
[340165072,1728731440575,-564.43,0.0005589,120]
[340165073,1728731440585,-500.0,0.0005589,120]
[340165074,1728731440594,-500.0,0.0005589,120]
[340165075,1728731440604,-500.0,0.00056164,120]
[340165076,1728731440613,-564.43,0.00056164,120]
[340165077,1728731440623,-500.0,0.00056164,120]
[340165078,1728731440632,-500.0,0.00056164,120]
[340165079,1728731440642,-500.0,0.00056438,120]
[340165080,1728731440652,-564.43,0.00056438,120]
[340165081,1728731440662,-500.0,0.00056438,120]
[340165082,1728731440671,-221.15923029,0.00056438,120]
[340165083,1728731440684,-278.84076971,0.00056438,120]
[340165084,1728731440694,-351.94493685,0.00056711,120]
[340165104,1728731443702,-23.62481603,0.00056711,120]
[340165105,1728731443711,-322.87769034,0.00056711,120]
[340165106,1728731443720,-500.0,0.00056712,120]
[340165107,1728731443730,-564.43,0.00056712,120]
[340165108,1728731443740,-500.0,0.00056712,120]
[340165109,1728731443750,-500.0,0.00056712,120]
[340165110,1728731443760,-500.0,0.00056986,120]
[340165111,1728731443769,-564.43,0.00056986,120]
[340165112,1728731443780,-637.738407,0.00056986,120]
[340165113,1728731443789,-500.0,0.00056986,120]
[340165114,1728731443799,-150.299,0.00057258,120]
[340165115,1728731443810,-500.0,0.0005726,120]
[340165116,1728731443821,-564.43,0.0005726,120]
[340165117,1728731443831,-500.0,0.0005726,120]
[340165118,1728731443841,-161.813806,0.00057304,120]
[340165119,1728731443852,-564.43,0.00057534,120]
[340165120,1728731443863,-155.51,0.000577,57]
[340165121,1728731443874,-155.51,0.000577,57]
[340165122,1728731443884,-564.43,0.00057808,120]
[340165123,1728731443895,-564.43,0.00058082,120]
[340165124,1728731443905,-298.359,0.00058104,120]
[340165125,1728731443915,-150.0,0.00058104,120]
[340165126,1728731443925,-526.0,0.00058104,120]
[340165127,1728731443936,-1222.0,0.00058104,120]
[340165128,1728731443948,-564.43,0.00058356,120]
[340165129,1728731443959,-564.43,0.0005863,120]
[340165130,1728731443970,-150.0,0.00058685,120]
[340165131,1728731443981,-564.43,0.00058904,120]
[340165132,1728731443990,-564.43,0.00059178,120]
[340165133,1728731444000,-313.7,0.00059196,30]
[340165134,1728731444009,-564.43,0.00059452,120]
[340165135,1728731444019,-400.0,0.0005964,2]
[340165136,1728731444031,-564.43,0.00059726,120]
[340165137,1728731444041,-158.925474,0.00059878,2]
[340165138,1728731444051,-564.43,0.00059999,120]
[340165139,1728731444062,-351.57,0.0006,2]
[340165140,1728731444074,-564.43,0.00060273,120]
[340165141,1728731444085,-564.43,0.00060547,120]
[340165142,1728731444094,-564.43,0.00060821,120]
[340165143,1728731444105,-217.85,0.00061075,30]
[340165144,1728731444115,-261.41,0.00061084,30]
[340165145,1728731444125,-181.54,0.00061084,30]
[340165146,1728731444136,-151.28,0.00061084,30]
[340165147,1728731444149,-756.43,0.00061084,30]
[340165148,1728731444158,-2271.58,0.00061085,10]
[340165149,1728731444172,-1892.99,0.00061085,10]
[340165150,1728731444189,-899.41788017,0.00061085,10]
[340165151,1728731444296,-678.07211983,0.00061085,10]
[340165152,1728731444306,-183.17751159,0.00061093,120]
[340165153,1728731444317,-26.70694093,0.00061093,120]
[340165162,1728731446802,-55.10463777,0.00061093,120]
[340165163,1728731449667,150.0,0.00047,90]
[340165165,1728731537829,500.0,0.000376,2]
[340165169,1728731799679,783728.5,0.00032,2]
[340165170,1728731799721,34100.0,0.00032,2]
[340165171,1728731799748,1199377.73592513,0.00032,2]
[340165172,1728731799776,24793.76407487,0.00032,2]
[340165184,1728732359173,-400.0,0.00039079,30]
[340165185,1728732359199,-78.48384049,0.00039079,5]
[340165189,1728732441147,-400.0,0.00039079,30]
[340165190,1728732441173,-334.0,0.00039079,5]
[340165191,1728732441196,-7443.4997099,0.0003908,2]
[340165192,1728732441217,-908.32016227,0.0004,5]
[340165193,1728732441239,-533.54922624,0.00041454,120]
[340165194,1728732448113,-11851.14317025,0.00041454,120]
[340165195,1728732448134,-2831.20304088,0.00042321,2]
[340165205,1728732546189,-1724.02,0.00041544,10]
[340165206,1728732546215,-1436.69,0.00041544,10]
[340165207,1728732546240,-310.0,0.00041553,30]
[340165208,1728732546263,-500.0,0.00042,5]
[340165209,1728732546288,-13632.51497152,0.00042321,2]
[340165210,1728732546312,-1517.32001047,0.00042887,28]
[340165211,1728732546337,-500.0,0.00043,15]
[340165212,1728732546363,-1517.3200104,0.00046852,28]
[340165213,1728732546385,-171.332579,0.00047639,2]
[340165214,1728732546409,-12384.69239649,0.00048478,120]
[340165215,1728732546434,-164.462599,0.00048592,2]
[340165216,1728732546459,-164.462599,0.00048641,2]
[340165217,1728732546483,-164.462599,0.00048689,2]
[340165218,1728732546508,-164.462599,0.00048738,2]
[340165219,1728732546531,-164.462599,0.00048787,2]
[340165220,1728732546558,-164.462599,0.00048835,2]
[340165221,1728732546582,-150.04197644,0.00048998,120]
[340165222,1728732546604,-1097.36629705,0.00049,120]
[340165223,1728732546629,-9061.79916609,0.0005,2]
[340165224,1728732546651,-247.61635905,0.0005,120]
[340165227,1728732551787,1197.24,0.00041544,10]
[340165231,1728732562555,997.7,0.00041544,10]
[340165232,1728732573413,831.42,0.00041544,10]
[340165235,1728732584200,692.85,0.00041544,10]
[340165236,1728732595023,577.37,0.00041544,10]
[340165237,1728732605718,481.14,0.00041544,10]
[340165238,1728732607563,1699.91,0.000416,30]
[340165239,1728732616468,400.95,0.00041544,10]
[340165240,1728732622943,1354.55904767,0.0004975,18]
[340165241,1728732624337,236.39355578,0.000416,30]
[340165242,1728732627283,334.13,0.00041544,10]
[340165243,1728732631213,393.77,0.000416,30]
[340165310,1728732631958,-2000.0,0.00041554,39]
[340165312,1728732631968,-77515.35808662,0.00041554,20]
[340165315,1728732631981,-6320.0,0.00041554,20]
[340165331,1728732632518,188.70536816,0.00041553,31]
[340165332,1728732633249,501.98208771,0.00041553,31]
[340165333,1728732634580,18218.15968613,0.00034487,2]
[340165334,1728732634603,2813.31193427,0.00034487,2]
[340165343,1728732638058,278.44,0.00041544,10]
[340165344,1728732638112,-53.16487117,0.00041554,20]
[340165345,1728732638124,-44874.30684157,0.00041554,20]
[340165351,1728732639911,-501.98208771,0.00041554,20]
[340165372,1728732645481,500.0,0.00041544,10]
[340165377,1728732648804,232.03,0.00041544,10]
[340165378,1728732659186,193.36,0.00041544,10]
[340165379,1728732670047,161.13,0.00041544,10]
[340165380,1728732680783,805.7,0.00041544,10]
[340165381,1728732704623,1000.0,0.00041544,10]
[340165383,1728732744067,300.17,0.00041544,10]
[340165384,1728732838963,206.23592513,0.00032,2]
[340165386,1728732870665,250.0,0.00030596,2]
[340165390,1728732925019,407.18236607,0.00030596,7]
[340165391,1728732937709,181.743593,0.00029712,2]
[340165392,1728732937885,181.743593,0.00029719,2]
[340165393,1728732938239,181.743593,0.00029727,2]
[340165394,1728732938533,181.743593,0.00029735,2]
[340165395,1728732938751,181.743593,0.00029743,2]
[340165396,1728732938983,181.743593,0.00029751,2]
[340165397,1728732939201,181.743593,0.00029758,2]
[340165398,1728732939430,181.743593,0.00029766,2]
[340165399,1728732939637,181.743593,0.00029774,2]
[340165400,1728732939871,181.743593,0.00029782,2]
[340165401,1728732940083,181.743593,0.0002979,2]
[340165402,1728732940266,181.743593,0.00029797,2]
[340165403,1728732940463,181.743593,0.00029805,2]
[340165404,1728732940662,181.743593,0.00029813,2]
[340165405,1728732940872,181.743593,0.00029821,2]
[340165406,1728732941076,181.743593,0.00029829,2]
[340165407,1728732941294,181.743593,0.00029836,2]
[340165408,1728732941522,181.743593,0.00029844,2]
[340165409,1728732941737,181.743593,0.00029852,2]
[340165410,1728732941952,181.743593,0.0002986,2]
[340165412,1728733124368,7820.0,0.00029967,2]
[340165413,1728733124395,5812.5149715,0.00029967,2]
[340165415,1728733200588,14895.43080243,0.00029712,2]
[340165416,1728733200622,8168.35648547,0.00029712,2]
[340165417,1728733239792,3000.0,0.00029967,2]
[340165418,1728733306129,176.915333,0.00029823,2]
[340165425,1728733638151,-172.2725329,0.00030035,2]
[340165426,1728733638174,-200.0,0.00030101,15]
[340165427,1728733638198,-555.3048272,0.00030303,2]
[340165428,1728733638220,-162.846095,0.00030349,2]
[340165429,1728733638243,-162.846095,0.00030432,2]
[340165430,1728733638266,-162.846095,0.00030515,2]
[340165431,1728733638290,-162.846095,0.00030598,2]
[340165432,1728733638317,-162.846095,0.00030682,2]
[340165433,1728733638340,-162.846095,0.00030765,2]
[340165434,1728733638365,-162.846095,0.00030848,2]
[340165435,1728733638387,-162.846095,0.00030931,2]
[340165436,1728733638411,-162.846095,0.00031015,2]
[340165437,1728733638433,-162.846095,0.00031098,2]
[340165438,1728733638455,-162.846095,0.00031181,2]
[340165439,1728733638479,-162.846095,0.00031264,2]
[340165440,1728733638500,-162.846095,0.00031348,2]
[340165441,1728733638524,-162.846095,0.00031431,2]
[340165442,1728733638547,-162.846095,0.00031514,2]
[340165443,1728733638569,-162.846095,0.00031597,2]
[340165444,1728733638591,-162.846095,0.0003168,2]
[340165445,1728733638613,-162.846095,0.00031764,2]
[340165446,1728733638636,-400.0,0.00031764,2]
[340165447,1728733638658,-400.0,0.00031764,2]
[340165448,1728733638681,-162.846095,0.00031847,2]
[340165449,1728733638702,-367.00092454,0.000319,2]
[340165450,1728733638726,-162.846095,0.0003193,2]
[340165451,1728733638750,-172.0,0.00031999,2]
[340165452,1728733638772,-500.0,0.00031999,2]
[340165453,1728733638799,-500.0,0.00031999,2]
[340165454,1728733638820,-500.0,0.00031999,2]
[340165455,1728733638843,-271.96613663,0.00031999,2]
[340165456,1728733638865,-500.0,0.00031999,2]
[340165457,1728733638887,-500.0,0.00031999,2]
[340165458,1728733638911,-500.0,0.00031999,2]
[340165459,1728733638932,-500.0,0.00031999,2]
[340165460,1728733638955,-500.0,0.00031999,2]
[340165461,1728733638977,-500.0,0.00031999,2]
[340165462,1728733639001,-500.0,0.00031999,2]
[340165463,1728733639023,-200.57719391,0.00031999,2]
[340165464,1728733639045,-500.0,0.00031999,2]
[340165465,1728733639067,-500.0,0.00031999,2]
[340165466,1728733639090,-500.0,0.00031999,2]
[340165467,1728733639111,-500.0,0.00031999,2]
[340165468,1728733639132,-500.0,0.00031999,2]
[340165469,1728733639155,-500.0,0.00031999,2]
[340165470,1728733639177,-500.0,0.00031999,2]
[340165471,1728733639202,-500.0,0.00031999,2]
[340165472,1728733639223,-500.0,0.00031999,2]
[340165473,1728733639244,-500.0,0.00031999,2]
[340165474,1728733639266,-500.0,0.00031999,2]
[340165475,1728733639290,-500.0,0.00031999,2]
[340165476,1728733639313,-500.0,0.00031999,2]
[340165477,1728733639335,-500.0,0.00031999,2]
[340165478,1728733639356,-500.0,0.00031999,2]
[340165479,1728733639380,-500.0,0.00031999,2]
[340165480,1728733639403,-117.72807114,0.00031999,2]
[340165481,1728733641146,-371.70945619,0.00031999,2]
[340165482,1728733646114,-10.56247267,0.00031999,2]
[340165483,1728733646149,-500.0,0.00031999,2]
[340165484,1728733646177,-500.0,0.00031999,2]
[340165485,1728733646204,-500.0,0.00031999,2]
[340165486,1728733646226,-500.0,0.00031999,2]
[340165487,1728733646250,-500.0,0.00031999,2]
[340165488,1728733646273,-500.0,0.00031999,2]
[340165489,1728733646295,-500.0,0.00031999,2]
[340165490,1728733646317,-500.0,0.00031999,2]
[340165491,1728733646342,-13035.47045467,0.00032,2]
[340165492,1728733653141,-851.35840002,0.00032,2]
[340165495,1728733755194,-1779.38312326,0.000319,2]
[340165496,1728733755217,-400.0,0.00031999,2]
[340165497,1728733755244,-400.0,0.00031999,2]
[340165498,1728733755274,-53459.93522018,0.00032,2]
[340165499,1728733755299,-271.45491071,0.00032,7]
[340165500,1728733755321,-520.11465162,0.00032091,5]
[340165501,1728733755345,-500.67834229,0.0003295,5]
[340165502,1728733755368,-367.00092453,0.00033283,2]
[340165503,1728733755391,-169.409,0.00034075,37]
[340165504,1728733755413,-192.66052814,0.00034075,37]
[340165505,1728733755437,-560.0,0.00034417,2]
[340165506,1728733755460,-501.74444936,0.00034436,5]
[340165507,1728733755482,-500.0,0.00034436,5]
[340165508,1728733755506,-500.0,0.00034635,5]
[340165509,1728733755526,-159.66595808,0.00034635,5]
[340165510,1728733755548,-500.0,0.00034635,5]
[340165511,1728733755568,-367.00092453,0.00034666,2]
[340165512,1728733755589,-302.51602579,0.00035,2]
[340165513,1728733755609,-505.8,0.00035,12]
[340165514,1728733755630,-560.0,0.00035199,2]
[340165515,1728733755652,-302.51602579,0.0003535,2]
[340165516,1728733755673,-174.48,0.0003553,3]